bitfinex-derivatives/quotes_ETHF0:USTF0_20260204
["timestamp","ask_amount","ask_price","bid_price","bid_amount"]
[1770217402397,7.72005506,2172.5,2169.3,1.06186]
[1770217402598,7.72005506,2172.4,2169.9,3.79829343]
[1770217402800,7.72005506,2172.4,2169.4,4.86013343]
[1770217402801,7.72005506,2172.4,2170.4,3.79829343]
[1770217403001,3.03462,2172.3,2171.5,3.79829343]
[1770217403211,1.5228,2173.6,2170.9,1.06111]
[1770217403409,7.72005506,2173.4,2171.3,3.79829343]
[1770217403701,7.72005506,2173.4,2171.0,3.79829343]
[1770217403702,7.71126938,2172.8,2171.0,3.79829343]
[1770217403901,7.71126938,2172.8,2171.2,3.79829343]
[1770217404102,1.059,2175.3,2172.7,1.06023]
[1770217404296,1.059,2175.3,2172.8,0.463]
[1770217404297,7.71126938,2175.1,2172.8,0.463]
[1770217404498,7.71126938,2174.2,2171.8,0.463]
[1770217404700,7.71126938,2174.2,2173.0,3.79829343]
[1770217404998,0.00467329,2174.2,2173.0,3.8031379]
[1770217405208,0.463,2175.7,2174.1,3.79829343]
[1770217405506,19.67307935,2175.6,2174.1,0.462]
[1770217405701,1.06298454,2176.5,2174.1,0.462]
[1770217405702,0.00459454,2176.5,2175.5,1.05883]
[1770217405904,3.03462,2176.6,2175.2,0.462]
[1770217406100,0.00416692,2176.6,2176.2,1.0585]
[1770217406303,0.462,2178.9,2176.6,1.05832]
[1770217406500,1.05683,2179.7,2176.6,1.05832]
[1770217406501,3.03462,2179.6,2176.7,1.05828]
[1770217406804,3.03462,2179.6,2175.9,1.05863]
[1770217406805,7.71126938,2177.9,2176.0,1.05859]
[1770217406999,7.71126938,2177.3,2174.6,1.05926]
[1770217407201,7.71126938,2176.3,2173.7,0.462]
[1770217407404,7.71126938,2174.9,2172.3,2.12083]
[1770217407607,3.79829343,2175.0,2172.3,1.06041]
[1770217407608,7.71126938,2174.7,2172.3,1.06041]
[1770217407905,7.71126938,2174.3,2172.1,0.462]
[1770217408101,7.71126938,2174.5,2173.2,1.05996]
[1770217408304,10.27973525,2174.4,2172.9,1.06011]
[1770217408505,2.56846587,2174.6,2173.5,1.05982]
[1770217408806,7.25136182,2174.2,2172.8,1.06015]
[1770217409010,7.25136182,2174.2,2172.9,1.06013]
[1770217409301,2.56846587,2174.1,2172.9,1.06011]
[1770217409501,2.56846587,2174.1,2172.3,1.06615102]
[1770217409502,2.56846587,2174.5,2172.3,0.46674102]
[1770217409702,16.63845935,2174.1,2172.4,1.06037]
[1770217410010,0.461,2174.4,2172.5,1.06029]
[1770217410306,0.00403542,2174.7,2174.3,1.05943]
[1770217410504,0.461,2176.0,2173.6,1.52078]
[1770217410709,3.79829343,2174.9,2172.3,2.38086678]
[1770217410909,7.49549285,2174.7,2172.6,1.06026]
[1770217411208,7.49549285,2174.7,2172.0,1.06056]
[1770217411209,7.49549285,2175.8,2173.8,1.05968]
[1770217411406,7.49892583,2175.8,2173.8,0.00400253]
[1770217411615,0.00343298,2175.8,2175.1,1.05902]
[1770217411910,0.00343298,2175.8,2174.9,1.05916]
[1770217411911,7.49549285,2176.6,2175.0,1.0591]
[1770217412101,0.461,2177.4,2174.3,1.05944]
[1770217412102,7.49549285,2176.0,2174.3,1.05944]
[1770217412303,1.05799,2177.3,2173.9,1.52063]
[1770217412304,7.49549285,2178.2,2176.3,2.69336795]
[1770217412503,7.49549285,2178.2,2176.9,1.05816]
[1770217412704,7.49549285,2179.3,2177.3,1.05798]
[1770217412909,7.49549285,2179.0,2177.5,1.05788]
[1770217413109,7.49549285,2178.0,2177.0,4.24542655]
[1770217413412,7.49549285,2178.7,2177.0,1.05813]
[1770217413607,7.49549285,2178.8,2177.4,1.05793]
[1770217413812,16.63845935,2178.2,2176.9,0.00572121]
[1770217414008,7.49549285,2178.4,2176.9,0.00572121]
[1770217414212,24.1339522,2178.0,2176.9,0.00572121]
[1770217414412,7.49549285,2178.4,2176.9,0.00572121]
[1770217414709,7.49549285,2178.1,2175.9,1.05867]
[1770217415010,7.49549285,2177.8,2175.9,4.99504046]
[1770217415208,1.06083983,2178.8,2176.5,1.05836]
[1770217415209,7.49549285,2177.7,2176.5,1.05836]
[1770217415408,0.00355983,2178.8,2177.5,1.05788]
[1770217415611,1.05665,2180.1,2177.5,1.05788]
[1770217415612,7.49549285,2179.7,2178.4,1.05744]
[1770217415811,7.49549285,2180.8,2178.9,1.05721]
[1770217416009,7.49549285,2180.8,2179.5,1.0569]
[1770217416206,16.63845935,2180.2,2179.1,1.05709]
[1770217416408,48.29549285,2181.1,2179.9,1.0567]
[1770217416612,7.94549285,2182.4,2180.8,1.05629]
[1770217416911,16.63845935,2182.0,2180.7,0.46]
[1770217417111,16.63845935,2181.0,2179.9,0.00448332]
[1770217417311,7.95549285,2181.2,2179.9,0.00448332]
[1770217417511,7.49549285,2181.7,2179.7,6.68510018]
[1770217417713,7.49549285,2182.3,2180.3,0.45864196]
[1770217418012,4.28018,2183.1,2180.3,0.45864196]
[1770217418013,7.95549285,2183.7,2181.8,5.62831018]
[1770217418211,1.05485,2183.8,2181.2,6.68441018]
[1770217418212,7.49549285,2183.1,2181.2,6.68441018]
[1770217418410,0.00509479,2183.1,2182.1,1.05565]
[1770217418712,16.63845935,2183.0,2182.0,1.05569]
[1770217418915,0.46,2183.1,2181.2,1.05991887]
[1770217418916,8.55071285,2183.1,2181.2,0.00383887]
[1770217419213,7.49549285,2181.8,2180.3,0.45864196]
[1770217419520,0.46,2182.2,2180.3,6.59340682]
[1770217419815,8.55170285,2181.0,2179.1,6.13476486]
[1770217420013,0.46,2180.9,2179.1,6.13476486]
[1770217420313,0.46,2180.9,2178.2,10.93004043]
[1770217420314,7.49549285,2179.9,2178.2,10.93004043]
[1770217420513,8.55207285,2180.2,2178.5,6.0309154]
[1770217420713,8.55199285,2180.4,2178.3,4.84731609]
[1770217420913,7.49996109,2180.9,2178.8,6.0309154]
[1770217421114,7.49996109,2180.9,2177.9,1.05766]
[1770217421115,7.49549285,2180.2,2178.2,6.0309154]
[1770217421320,7.49549285,2180.0,2178.2,6.03656282]
[1770217421617,24.1339522,2179.7,2178.2,0.00564742]
[1770217421812,7.49549285,2179.4,2177.6,7.0887454]
[1770217422010,7.49549285,2180.6,2178.7,6.0309154]
[1770217422207,7.49549285,2180.4,2178.9,1.05717]
[1770217422415,0.00446824,2180.9,2179.9,1.0567]
[1770217422614,7.49549285,2181.5,2179.6,6.5092236]
[1770217422817,7.49549285,2180.5,2179.0,0.83826811]
[1770217423116,7.95549285,2180.5,2178.4,6.5092236]
[1770217423311,7.49549285,2180.4,2178.4,6.5092236]
[1770217423511,7.49549285,2180.0,2177.9,7.5669036]
[1770217423813,7.49549285,2179.6,2177.2,7.5672336]
[1770217424013,8.55251285,2179.3,2177.2,6.5092236]
[1770217424216,1.05694,2179.5,2176.6,6.5092236]
[1770217424217,8.55291285,2178.5,2176.6,6.5092236]
[1770217424409,7.49549285,2178.3,2176.1,6.94112712]
[1770217424715,7.49549285,2177.9,2176.1,6.94112712]
[1770217425012,16.17553935,2177.7,2176.4,6.94112712]
[1770217425218,16.17553935,2177.8,2176.1,0.00479344]
[1770217425415,7.49549285,2177.7,2176.1,0.00479344]
[1770217425614,7.49549285,2177.7,2176.1,6.94592056]
[1770217425812,16.17553935,2177.3,2176.1,0.00479344]
[1770217426123,0.459,2177.4,2176.1,0.00479344]
[1770217426321,16.17553935,2177.1,2176.1,0.00479344]
[1770217426516,16.17553935,2177.0,2176.1,0.00479344]
[1770217426710,0.459,2177.4,2176.1,0.00479344]
[1770217426918,7.95449285,2177.4,2176.1,0.00479344]
[1770217427112,16.17553935,2177.2,2176.1,0.00479344]
[1770217427317,7.49549285,2177.1,2175.5,6.94112712]
[1770217427517,7.49549285,2177.7,2175.8,7.99983712]
[1770217427817,7.49954072,2177.9,2176.2,6.94112712]
[1770217428114,7.49954072,2177.9,2176.1,6.94112712]
[1770217428115,0.459,2177.7,2176.1,6.94112712]
[1770217428422,0.459,2177.7,2176.3,6.94112712]
[1770217428623,7.49549285,2177.2,2176.1,0.00456795]
[1770217428823,16.17553935,2176.5,2176.1,0.00456795]
[1770217429020,0.459,2176.4,2175.1,0.9194]
[1770217429220,7.49549285,2175.5,2174.4,0.22196456]
[1770217429418,7.95449285,2175.5,2174.4,0.22196456]
[1770217429716,16.17553935,2175.2,2174.4,0.22196456]
[1770217429920,16.17553935,2174.7,2173.5,1.0598]
[1770217430119,7.49549285,2175.0,2173.3,8.00102712]
[1770217430418,7.49549285,2175.0,2173.3,6.94112712]
[1770217430718,7.49549285,2174.9,2173.0,8.00119712]
[1770217430917,7.49549285,2174.9,2173.4,1.05988]
[1770217431118,7.49549285,2174.9,2173.4,6.94112712]
[1770217431318,0.0038122,2175.2,2173.4,8.00099712]
[1770217431519,16.17553935,2175.1,2173.4,6.94112712]
[1770217431917,16.17553935,2175.0,2173.4,6.94112712]
[1770217432121,7.49930505,2175.2,2173.6,6.94112712]
[1770217432321,16.17553935,2175.1,2173.7,0.1464744]
[1770217432627,0.0038122,2175.2,2173.8,7.08766876]
[1770217432821,0.0038122,2175.2,2173.9,7.08765519]
[1770217433016,7.49549285,2176.3,2175.0,1.0591]
[1770217433223,0.45,2176.4,2175.1,0.14685708]
[1770217433417,0.45,2176.4,2175.1,6.94112712]
[1770217433624,16.17553935,2176.3,2175.2,0.14693372]
[1770217433824,0.45,2176.4,2175.5,1.05885]
[1770217434022,0.454956,2176.4,2175.6,0.14693686]
[1770217434227,7.814726,2177.3,2175.9,8.10913133]
[1770217434228,0.46,2177.3,2175.9,8.10913133]
[1770217434524,7.354726,2178.8,2176.6,7.05049133]
[1770217434829,7.354726,2178.0,2176.2,0.46]
[1770217435129,16.17553935,2177.5,2176.3,0.14698931]
[1770217435328,16.17553935,2177.5,2176.4,0.14710248]
[1770217435524,16.17553935,2177.5,2175.7,1.05875]
[1770217435525,1.058,2177.3,2175.5,0.00587684]
[1770217435728,1.0581,2177.1,2175.5,0.00587684]
[1770217435926,0.23003,2177.0,2175.5,0.00587684]
[1770217436129,16.17553935,2176.4,2175.5,0.00587684]
[1770217436325,0.00424138,2176.4,2175.5,0.00587684]
[1770217436624,1.05756,2178.2,2175.5,0.00587684]
[1770217436625,1.05767,2178.0,2176.1,7.05049133]
[1770217436830,16.17553935,2177.0,2175.5,7.05636817]
[1770217437029,0.459,2177.0,2175.5,0.00587684]
[1770217437229,7.813726,2177.0,2175.5,7.05636817]
[1770217437524,16.17553935,2176.8,2175.5,0.00587684]
[1770217437727,7.81951743,2177.0,2175.5,0.00587684]
[1770217437927,16.17553935,2176.6,2175.5,0.00587684]
[1770217438124,16.17553935,2176.9,2175.6,8.68128691]
[1770217438428,7.57885519,2178.3,2176.9,1.05814]
[1770217438632,0.459,2178.4,2176.9,8.91064691]
[1770217438932,0.459,2178.4,2177.4,1.05793]
[1770217439229,7.57885519,2178.8,2177.4,1.05793]
[1770217439230,48.37885519,2179.3,2177.8,1.05774]
[1770217439524,8.03785519,2179.3,2177.4,7.62619026]
[1770217439724,16.17553935,2179.0,2177.4,7.62619026]
[1770217439932,7.57885519,2178.9,2177.5,0.14368106]
[1770217440127,7.57885519,2178.9,2176.5,1.05833]
[1770217440128,7.57885519,2178.7,2176.5,0.23007]
[1770217440327,7.57885519,2177.8,2175.8,6.62247691]
[1770217440634,7.57885519,2177.4,2175.9,0.14378684]
[1770217440831,7.57885519,2176.9,2175.1,0.23022]
[1770217441033,7.57885519,2176.3,2174.6,0.23028]
[1770217441235,7.58217913,2176.3,2174.7,1.05925]
[1770217441430,0.00332394,2176.3,2174.9,1.2894]
[1770217441625,8.03785519,2177.8,2176.2,1.28861]
[1770217441935,7.57885519,2178.3,2177.0,0.23002]
[1770217442126,7.57885519,2178.2,2176.3,0.23009]
[1770217442330,7.57885519,2177.7,2176.3,1.28856]
[1770217442529,0.459,2178.8,2176.4,7.85256691]
[1770217442530,7.57885519,2177.9,2176.4,7.85256691]
[1770217442726,7.57885519,2177.5,2176.3,0.0043691]
[1770217442927,8.63715519,2176.7,2174.8,7.62247691]
[1770217443131,7.57885519,2176.9,2175.1,8.91173691]
[1770217443434,7.57885519,2177.4,2176.1,0.23011]
[1770217443625,7.57885519,2177.4,2175.4,7.62247691]
[1770217443930,0.46477011,2177.7,2175.9,8.68114691]
[1770217444136,8.0436253,2177.7,2176.0,7.99638818]
[1770217444328,24.21916465,2177.7,2176.2,0.23011]
[1770217444529,24.21916465,2177.7,2175.7,1.05874]
[1770217444530,7.57885519,2177.3,2175.5,7.85265691]
[1770217444728,7.57885519,2176.7,2174.8,7.85272691]
[1770217444930,0.00577011,2177.7,2176.3,7.85257691]
[1770217445136,7.5846253,2177.7,2175.9,7.85260691]
[1770217445334,7.5846253,2177.7,2175.6,0.459]
[1770217445335,23.75439454,2177.0,2175.6,0.459]
[1770217445633,1.05791,2177.5,2175.4,7.62776097]
[1770217445634,16.17553935,2176.2,2175.4,0.00528406]
[1770217445832,7.57885519,2176.2,2175.4,0.00528406]
[1770217446027,7.57885519,2176.2,2174.4,8.68185691]
[1770217446028,1.05864,2176.0,2174.4,7.62247691]
[1770217446225,16.17553935,2175.3,2174.3,0.45990756]
[1770217446427,7.57885519,2175.4,2174.3,0.45990756]
[1770217446632,16.17553935,2175.0,2174.3,0.45990756]
[1770217446929,16.17553935,2174.7,2173.5,1.29023]
[1770217447134,7.57885519,2175.0,2173.3,0.459]
[1770217447335,7.57885519,2175.0,2173.4,0.00362674]
[1770217447336,23.75958553,2174.7,2173.4,0.00362674]
[1770217447536,23.75958553,2174.7,2172.5,8.68276691]
[1770217447537,16.17553935,2174.2,2173.0,0.23044]
[1770217447738,16.17553935,2174.0,2173.0,0.23044]
[1770217447934,16.17553935,2173.8,2172.5,8.68278691]
[1770217448133,7.57885519,2174.1,2172.9,0.23046]
[1770217448334,0.459,2174.6,2173.0,0.37443168]
[1770217448633,0.459,2174.6,2173.1,0.14399168]
[1770217448833,8.03785519,2174.6,2173.2,0.14397952]
[1770217449137,16.17553935,2173.8,2173.0,0.00357416]
[1770217449327,16.17553935,2174.0,2173.0,0.00357416]
[1770217449532,8.03785519,2174.6,2173.0,1.06363416]
[1770217449734,0.00519099,2174.7,2173.4,1.05989]
[1770217449927,7.58404618,2174.7,2173.5,0.14398801]
[1770217450127,7.57885519,2174.5,2173.1,0.46]
[1770217450437,7.57885519,2173.9,2173.0,0.00357416]
[1770217450731,7.57885519,2173.5,2172.1,0.46]
[1770217451036,7.57885519,2173.5,2172.2,0.14405118]
[1770217451239,7.57885519,2173.5,2172.1,0.46]
[1770217451240,16.17553935,2173.3,2172.1,0.46]
[1770217451435,16.17553935,2173.3,2172.2,0.14404639]
[1770217451736,7.57885519,2174.5,2172.7,8.91317691]
[1770217452034,8.63870519,2173.5,2172.2,0.00329851]
[1770217452239,7.57885519,2172.9,2171.4,0.23062]
[1770217452431,0.69041,2173.4,2170.9,1.29177]
[1770217452432,7.57885519,2172.5,2170.9,1.29177]
[1770217452638,1.5199,2173.4,2170.7,7.62247691]
[1770217452639,7.57885519,2173.0,2171.4,1.06085]
[1770217452936,7.57885519,2173.0,2171.2,7.85311691]
[1770217453132,7.57885519,2172.4,2171.2,0.00390464]
[1770217453535,0.46,2172.3,2171.1,0.23065]
[1770217453732,0.46367589,2173.0,2171.7,8.68318691]
[1770217453931,7.57885519,2172.8,2171.1,0.23065]
[1770217454132,8.04253108,2173.0,2171.5,7.85307691]
[1770217454334,23.72152192,2173.0,2171.4,7.62247691]
[1770217454541,7.57885519,2172.7,2171.4,0.00356277]
[1770217454739,0.46367589,2173.0,2171.4,7.62603968]
[1770217454941,23.72152192,2173.0,2171.4,7.62603968]
[1770217455237,1.05972,2173.8,2171.4,7.62603968]
[1770217455238,7.57885519,2175.2,2173.0,7.62247691]
[1770217455443,7.57885519,2174.8,2173.0,8.91298691]
[1770217455637,7.57885519,2174.8,2173.1,8.91293691]
[1770217455831,7.57885519,2174.8,2173.1,7.85291691]
[1770217456031,7.57885519,2174.8,2173.4,7.85287691]
[1770217456232,0.00355904,2174.8,2173.4,7.85858452]
[1770217456535,8.63822519,2174.5,2173.4,0.00570761]
[1770217456737,7.57885519,2174.3,2173.4,0.00570761]
[1770217456938,0.46,2174.6,2173.4,0.00570761]
[1770217457334,0.46,2174.6,2173.4,7.62818452]
[1770217457534,0.46,2174.6,2173.4,0.00570761]
[1770217457733,8.03885519,2174.6,2173.4,0.00570761]
[1770217458339,0.46,2174.6,2173.4,7.62818452]
[1770217458548,0.46,2174.6,2173.4,0.00570761]
[1770217458738,0.00355904,2174.8,2173.5,8.91270691]
[1770217458934,0.00355904,2174.8,2173.5,7.62247691]
[1770217459134,0.00355904,2174.8,2174.0,1.05958]
[1770217459433,8.86768519,2175.9,2174.1,7.62247691]
[1770217459735,7.57885519,2175.5,2173.6,7.62247691]
[1770217459936,7.57885519,2176.3,2174.2,8.91227691]
[1770217460139,7.57885519,2175.9,2173.7,8.68219691]
[1770217460340,7.58475009,2175.9,2173.7,8.68219691]
[1770217460536,7.58475009,2175.9,2174.0,0.23033]
[1770217460838,7.58475009,2175.9,2174.1,0.23033]
[1770217461041,7.58475009,2175.9,2174.1,7.85280691]
[1770217461342,7.57885519,2175.4,2173.6,7.62247691]
[1770217461641,7.57885519,2176.6,2175.1,0.23022]
[1770217462033,0.0058949,2176.1,2174.5,8.31276691]
[1770217462234,8.03885519,2176.2,2174.6,0.23027]
[1770217462433,7.57885519,2176.0,2174.5,8.08247691]
[1770217462633,7.58230864,2176.0,2174.5,0.46335082]
[1770217462838,7.58475009,2175.8,2174.5,0.46335082]
[1770217463044,0.00345345,2176.0,2174.5,8.08582773]
[1770217463242,7.57885519,2175.8,2174.5,0.00335082]
[1770217463443,7.58475009,2175.6,2174.5,0.00335082]
[1770217463640,7.66313325,2175.5,2174.5,0.00335082]
[1770217463841,0.0058949,2175.4,2174.5,0.00335082]
[1770217464043,0.0058949,2175.2,2174.5,0.00335082]
[1770217464243,0.0058949,2175.3,2174.5,0.00335082]
[1770217464435,0.00345345,2176.0,2174.5,0.00335082]
[1770217464436,7.6606918,2176.0,2174.5,0.00335082]
[1770217464642,7.65723835,2175.8,2174.5,0.00335082]
[1770217464841,0.00345345,2176.0,2174.5,7.30522579]
[1770217465040,7.65723835,2175.9,2174.5,7.30522579]
[1770217465247,7.65723835,2175.5,2174.5,0.00335082]
[1770217465543,7.65723835,2175.1,2173.6,0.46]
[1770217465840,7.65723835,2175.1,2172.8,2.67519399]
[1770217465841,7.65723835,2175.1,2173.4,7.30187497]
[1770217466451,7.66313325,2174.8,2173.4,0.00409053]
[1770217466647,7.65723835,2174.6,2173.4,0.00409053]
[1770217466843,7.65723835,2174.3,2172.9,7.30187497]
[1770217467045,0.46,2174.7,2173.0,7.67628679]
[1770217467241,8.11723835,2174.7,2173.2,0.23042]
[1770217467443,0.46,2174.7,2173.3,7.30187497]
[1770217467745,7.66313325,2174.2,2173.3,0.00575236]
[1770217467945,7.66313325,2174.1,2172.8,7.30187497]
[1770217468247,7.65723835,2174.1,2172.2,7.30187497]
[1770217468444,7.65723835,2174.2,2172.7,1.06022]
[1770217468649,8.11723835,2174.2,2172.8,7.30187497]
[1770217468845,9.18265325,2174.2,2172.3,7.30187497]
[1770217469046,7.65723835,2173.9,2172.3,7.30612917]
[1770217469248,7.88762835,2173.6,2172.3,0.0042542]
[1770217469448,7.65723835,2173.3,2172.3,0.0042542]
[1770217469748,7.66313325,2173.0,2171.4,7.30187497]
[1770217469947,7.65723835,2173.0,2171.6,7.53246497]
[1770217470141,7.65723835,2173.0,2171.7,0.14406768]
[1770217470348,7.66313325,2172.9,2171.2,7.53250497]
[1770217470541,7.65723835,2172.6,2170.9,0.46]
[1770217470739,7.66221416,2172.6,2171.0,0.1441093]
[1770217470939,7.66221416,2172.6,2170.9,0.23482155]
[1770217470940,7.65723835,2172.4,2170.9,0.23482155]
[1770217471145,7.65723835,2173.8,2172.3,7.30187497]
[1770217471347,7.65723835,2173.8,2172.0,0.23055]
[1770217471543,7.65723835,2173.5,2171.3,8.36277497]
[1770217471743,7.65723835,2173.3,2172.1,0.23054]
[1770217472150,7.65723835,2173.1,2171.6,0.2306]
[1770217472346,7.65723835,2173.1,2171.7,0.14405809]
[1770217472646,7.65723835,2173.1,2171.6,7.30187497]
[1770217472840,7.65723835,2173.1,2171.7,0.14407173]
[1770217473039,0.0058949,2173.0,2171.6,7.30187497]
[1770217473244,0.00378386,2173.3,2171.9,0.23056]
[1770217473440,0.00378386,2173.3,2172.2,0.23053]
[1770217473641,0.00378386,2173.3,2172.2,7.53240497]
[1770217473842,7.65723835,2174.4,2172.9,8.36200497]
[1770217474041,0.00378386,2174.3,2173.0,7.44591255]
[1770217474241,7.65723835,2174.2,2172.2,3.17401998]
[1770217474549,7.65723835,2173.7,2172.3,0.1440071]
[1770217474750,8.12116795,2173.7,2172.4,0.1440071]
[1770217474947,7.66313325,2173.5,2172.4,0.1440071]
[1770217475244,7.66313325,2173.4,2172.4,0.1440071]
[1770217475448,0.0058949,2173.3,2172.4,0.1440071]
[1770217475647,0.0058949,2173.1,2172.3,0.00369265]
[1770217475848,0.0058949,2173.0,2172.3,0.00369265]
[1770217476045,0.0058949,2173.1,2172.3,0.00369265]
[1770217476253,0.0058949,2172.9,2172.3,0.00369265]
[1770217476648,0.0058949,2172.7,2172.3,0.00369265]
[1770217476855,0.0058949,2172.9,2172.3,0.00369265]
[1770217477050,0.00378386,2173.1,2172.3,0.00369265]
[1770217477254,0.4639296,2173.7,2172.7,7.53234497]
[1770217477455,7.65723835,2174.6,2173.2,0.23043]
[1770217477651,7.65723835,2174.6,2173.3,0.1440446]
[1770217477953,5.85047426,2175.7,2173.7,7.30187497]
[1770217477954,7.65723835,2175.1,2173.7,7.30187497]
[1770217478158,7.65723835,2175.1,2173.3,0.46]
[1770217478159,7.65723835,2175.1,2173.8,0.1440446]
[1770217478363,7.65723835,2175.1,2173.9,0.1440446]
[1770217478364,7.66161557,2175.1,2173.9,0.1440446]
[1770217478558,7.66161557,2175.1,2174.0,0.1440446]
[1770217478759,7.65723835,2174.9,2173.9,0.00385565]
[1770217478964,7.65723835,2174.9,2173.3,0.46]
[1770217478965,7.88750835,2174.7,2173.3,0.46]
[1770217479159,7.65723835,2174.5,2173.4,0.14397523]
[1770217479461,1.06346722,2175.1,2172.9,0.23045]
[1770217479462,0.00437722,2175.1,2173.7,8.36159497]
[1770217479761,7.65723835,2176.3,2175.1,0.23022]
[1770217479959,7.65723835,2176.3,2174.5,7.30187497]
[1770217480160,7.65723835,2176.3,2174.7,0.23027]
[1770217480358,7.65723835,2176.3,2174.8,0.14387895]
[1770217480564,7.65723835,2176.3,2174.9,0.14387895]
[1770217480764,7.65723835,2176.1,2174.9,0.00471846]
[1770217480959,0.00427122,2176.3,2174.9,0.00471846]
[1770217480960,7.65723835,2175.7,2174.9,0.00471846]
[1770217481164,7.65723835,2176.2,2174.9,0.00471846]
[1770217481461,7.65723835,2176.2,2175.0,0.14387732]
[1770217481665,7.65723835,2176.2,2174.9,0.00471846]
[1770217482065,7.66150957,2176.3,2175.1,7.30187497]
[1770217482257,7.65723835,2175.8,2174.9,0.00471846]
[1770217482463,7.65723835,2175.2,2173.6,7.30187497]
[1770217482658,7.65723835,2175.2,2173.2,0.46]
[1770217482659,7.65723835,2175.2,2173.7,0.14394028]
[1770217482857,7.65723835,2174.5,2173.2,0.46]
[1770217483067,7.65723835,2174.8,2173.0,7.30187497]
[1770217483264,7.65723835,2175.0,2173.7,0.23037]
[1770217483464,0.00495924,2175.0,2173.9,0.23035]
[1770217483766,0.00495924,2175.0,2174.0,0.14396104]
[1770217483966,0.00495924,2175.0,2174.1,0.1439352]
[1770217484163,0.46,2175.3,2174.0,0.23034]
[1770217484164,0.46,2175.3,2174.4,8.36127497]
[1770217484363,0.46,2175.3,2173.7,0.00467369]
[1770217484364,7.66219759,2175.3,2173.7,0.00467369]
[1770217484567,7.65723835,2175.8,2174.2,7.30187497]
[1770217484766,7.65723835,2175.8,2174.3,7.44579474]
[1770217484969,7.65723835,2175.3,2173.9,7.30187497]
[1770217485165,7.66169493,2175.3,2174.0,0.14392783]
[1770217485360,8.12219759,2175.2,2174.1,0.14392783]
[1770217485669,8.11723835,2175.2,2174.2,0.14392783]
[1770217485870,0.00495924,2174.5,2173.7,0.00467369]
[1770217486169,7.65723835,2174.8,2173.7,0.00467369]
[1770217486466,0.46,2175.2,2174.1,1.05955]
[1770217486669,0.68009,2176.4,2174.0,8.36146497]
[1770217486670,0.45,2176.4,2175.4,0.23019]
[1770217486865,8.10723835,2176.4,2175.5,0.14384869]
[1770217487065,8.11219759,2176.4,2174.8,7.30187497]
[1770217487270,0.45,2176.4,2175.0,7.30187497]
[1770217487564,0.45443363,2176.4,2175.3,7.30187497]
[1770217487869,0.20419463,2176.4,2175.4,0.14385377]
[1770217488066,0.20419463,2176.4,2175.3,7.30187497]
[1770217488268,0.20419463,2176.4,2175.4,8.50459178]
[1770217488469,0.20419463,2176.4,2175.5,7.67588178]
[1770217488669,0.20419463,2176.4,2175.6,7.44570178]
[1770217488863,0.20419463,2176.4,2175.7,0.14382681]
[1770217489069,8.11723835,2177.2,2175.8,7.44570178]
[1770217489269,1.05785,2177.6,2175.9,0.14382681]
[1770217489572,7.65723835,2176.1,2175.0,0.00471043]
[1770217489867,8.11723835,2176.1,2175.0,0.00471043]
[1770217490063,7.66184909,2176.1,2175.0,0.00471043]
[1770217490264,7.66184909,2176.1,2174.2,7.30187497]
[1770217490265,7.65723835,2175.9,2174.2,7.30187497]
[1770217490471,7.65723835,2175.6,2173.8,7.30187497]
[1770217490777,7.88741835,2175.6,2174.3,0.45990756]
[1770217491372,7.88741835,2175.6,2173.1,5.44003257]
[1770217491373,7.65723835,2174.6,2172.8,7.30187497]
[1770217491665,7.65723835,2174.2,2172.3,7.30187497]
[1770217491871,7.65723835,2174.2,2172.1,0.46]
[1770217491872,8.94717835,2174.0,2172.1,0.46]
[1770217492070,7.88760835,2173.8,2172.1,0.46]
[1770217492263,8.94756835,2173.4,2171.4,7.30187497]
[1770217492567,7.65723835,2173.2,2171.5,7.44595862]
[1770217492776,7.65723835,2173.2,2171.5,7.30187497]
[1770217493074,8.11723835,2173.1,2171.2,0.46]
[1770217493365,8.11723835,2173.1,2170.2,0.23074]
[1770217493366,7.65723835,2172.2,2170.2,0.23074]
[1770217493566,1.06044,2172.3,2169.7,7.30187497]
[1770217493567,7.65723835,2172.0,2169.7,7.30187497]
[1770217493765,7.30409483,2171.8,2169.9,8.04858693]
[1770217493965,7.30409483,2171.8,2170.0,0.14418954]
[1770217494165,7.30409483,2171.8,2170.1,1.0615]
[1770217494370,7.30409483,2171.8,2170.3,10.72476477]
[1770217494574,0.00433079,2171.8,2170.7,1.06118]
[1770217494769,0.00433079,2171.8,2170.8,6.98698693]
[1770217494966,0.00433079,2171.8,2170.9,7.13111263]
[1770217495174,0.00433079,2171.8,2170.9,6.98698693]
[1770217495367,7.30409483,2172.3,2170.9,6.98698693]
[1770217496166,7.76409483,2172.6,2170.7,10.95545477]
[1770217496366,7.76858203,2172.6,2170.8,6.98698693]
[1770217496969,7.30409483,2172.4,2170.6,0.46]
[1770217497175,7.30409483,2172.4,2170.6,7.44698693]
[1770217497576,7.30409483,2172.0,2170.1,6.99079101]
[1770217497777,7.18976614,2171.6,2170.1,0.00380408]
[1770217498074,7.18976614,2171.4,2170.1,0.00380408]
[1770217498268,0.46,2171.5,2170.1,0.00380408]
[1770217498476,7.18976614,2171.5,2170.2,0.23074]
[1770217498674,0.46,2171.8,2170.2,7.50289359]
[1770217498866,7.64976614,2171.8,2170.2,7.27215359]
[1770217499068,7.64976614,2171.8,2170.5,11.00993143]
[1770217499272,7.64976614,2171.8,2170.1,0.00380408]
[1770217499675,7.64976614,2171.8,2170.1,7.50670767]
[1770217500470,7.64976614,2171.8,2170.1,7.27595767]
[1770217500779,7.18976614,2171.9,2170.3,7.27215359]
[1770217500976,0.46,2172.2,2170.5,8.33342359]
[1770217501171,7.64976614,2172.2,2170.7,7.27215359]
[1770217501375,7.88030614,2172.2,2170.2,8.33359359]
[1770217501576,7.18976614,2172.0,2170.2,7.27215359]
[1770217501870,0.46,2172.2,2171.1,11.24058143]
[1770217502169,7.64976614,2172.2,2170.6,11.00993143]
[1770217502370,8.71025614,2172.2,2170.1,11.01373551]
[1770217502573,7.19425334,2172.6,2171.4,0.23061]
[1770217502775,1.0597,2173.8,2172.2,11.00993143]
[1770217502776,7.18976614,2173.8,2172.2,11.00993143]
[1770217502977,7.18976614,2174.7,2173.4,1.05986]
[1770217503273,7.42005614,2174.5,2172.3,9.98617357]
[1770217503475,8.24931614,2174.1,2171.8,7.50272359]
[1770217503671,7.18976614,2173.9,2172.6,0.23049]
[1770217503875,0.0058413,2174.1,2172.8,7.27215359]
[1770217504078,7.19560744,2174.1,2172.4,7.27215359]
[1770217504277,7.18976614,2173.5,2171.9,7.27215359]
[1770217504576,7.18976614,2173.3,2171.8,0.0054455]
[1770217504882,7.64976614,2173.4,2171.8,7.27759909]
[1770217505081,0.46,2173.4,2172.4,7.27215359]
[1770217505277,7.64976614,2173.4,2171.9,7.27215359]